[Event "*** SCC Grand Prix: Titled Tuesday Blitz"]
[Site "Chess.com"]
[Date "2020.07.07"]
[Round "10"]
[White "Fins0905"]
[Black "Crazy_girl99"]
[Result "1/2-1/2"]
[WhiteElo "2621"]
[BlackElo "2474"]
[TimeControl "180+1"]
[EndTime "11:56:40 PDT"]
[Termination "Game drawn by repetition"]

1. d4 {[%clk 0:03:00.9]} 1... d5 {[%clk 0:02:59.2]} 2. c4 {[%clk 0:02:58.8]}
2... c6 {[%clk 0:02:59.1]} 3. Nf3 {[%clk 0:02:58.6]} 3... Nf6 {[%clk 0:02:59.1]}
4. Nc3 {[%clk 0:02:58]} 4... g6 {[%clk 0:02:55.7]} 5. cxd5 {[%clk 0:02:55.9]}
5... cxd5 {[%clk 0:02:55.1]} 6. Bf4 {[%clk 0:02:55.8]} 6... Bg7 {[%clk
0:02:51.7]} 7. e3 {[%clk 0:02:55.8]} 7... O-O {[%clk 0:02:50.9]} 8. Bd3 {[%clk
0:02:55.8]} 8... Nc6 {[%clk 0:02:51]} 9. Rc1 {[%clk 0:02:55.2]} 9... h6 {[%clk
0:02:38.2]} 10. h3 {[%clk 0:02:52.5]} 10... Be6 {[%clk 0:02:37.4]} 11. O-O
{[%clk 0:02:50.2]} 11... Rc8 {[%clk 0:02:37.3]} 12. Na4 {[%clk 0:02:31.4]} 12...
Nd7 {[%clk 0:02:31.7]} 13. a3 {[%clk 0:02:25.1]} 13... Na5 {[%clk 0:02:22.3]}
14. Nd2 {[%clk 0:02:06.3]} 14... a6 {[%clk 0:02:07.9]} 15. b3 {[%clk 0:01:17.3]}
15... b5 {[%clk 0:01:58.8]} 16. Nc5 {[%clk 0:01:14.8]} 16... Nxc5 {[%clk
0:01:58.4]} 17. Rxc5 {[%clk 0:01:10.4]} 17... Rxc5 {[%clk 0:01:56.8]} 18. dxc5
{[%clk 0:01:10.3]} 18... d4 {[%clk 0:01:56.3]} 19. e4 {[%clk 0:01:02]} 19... Qc8
{[%clk 0:01:37.5]} 20. Qc2 {[%clk 0:00:56.2]} 20... Rd8 {[%clk 0:01:31.4]} 21.
Rc1 {[%clk 0:00:50.9]} 21... Nc6 {[%clk 0:01:30.1]} 22. Nf3 {[%clk 0:00:44.5]}
22... Qb7 {[%clk 0:01:12.1]} 23. Kh2 {[%clk 0:00:38.7]} 23... Rc8 {[%clk
0:01:10.6]} 24. Qd1 {[%clk 0:00:32.1]} 24... Na5 {[%clk 0:01:04.6]} 25. Nd2
{[%clk 0:00:29.7]} 25... Nc6 {[%clk 0:00:59.2]} 26. Nf3 {[%clk 0:00:21.9]} 26...
Na5 {[%clk 0:00:58.1]} 27. Nd2 {[%clk 0:00:19.6]} 27... Nc6 {[%clk 0:00:57.7]}
28. Nf3 {[%clk 0:00:18.4]} 1/2-1/2

[Event "*** SCC Grand Prix: Titled Tuesday Blitz"]
[Site "Chess.com"]
[Date "2020.07.07"]
[Round "10"]
[White "Veiso"]
[Black "shineatchess"]
[Result "1-0"]
[WhiteElo "2380"]
[BlackElo "2189"]
[TimeControl "180+1"]
[EndTime "11:56:46 PDT"]
[Termination "Veiso won by checkmate"]

1. d4 {[%clk 0:03:00.9]} 1... Nf6 {[%clk 0:02:58.5]} 2. c4 {[%clk 0:03:01.3]}
2... e6 {[%clk 0:02:58.7]} 3. Nc3 {[%clk 0:03:01.3]} 3... d5 {[%clk 0:02:58.6]}
4. Nf3 {[%clk 0:03:00.4]} 4... Be7 {[%clk 0:02:56.1]} 5. Bg5 {[%clk 0:03:00.1]}
5... O-O {[%clk 0:02:55.4]} 6. e3 {[%clk 0:02:59.5]} 6... h6 {[%clk 0:02:55.7]}
7. Bxf6 {[%clk 0:02:58]} 7... Bxf6 {[%clk 0:02:55.2]} 8. Rc1 {[%clk 0:02:58.9]}
8... c6 {[%clk 0:02:52.6]} 9. h4 {[%clk 0:02:58.2]} 9... Nd7 {[%clk 0:02:45.7]}
10. g4 {[%clk 0:02:58]} 10... Re8 {[%clk 0:02:25.3]} 11. g5 {[%clk 0:02:55.7]}
11... hxg5 {[%clk 0:02:22]} 12. hxg5 {[%clk 0:02:55.6]} 12... Bxg5 {[%clk
0:02:22.1]} 13. Qd3 {[%clk 0:02:47.2]} 13... Nf8 {[%clk 0:02:13.9]} 14. Nxg5
{[%clk 0:02:45.1]} 14... Qxg5 {[%clk 0:02:10.8]} 15. Be2 {[%clk 0:02:46]} 15...
dxc4 {[%clk 0:01:44.4]} 16. Qxc4 {[%clk 0:02:44.2]} 16... Qg2 {[%clk 0:01:14]}
17. Kd2 {[%clk 0:02:42.3]} 17... Qxf2 {[%clk 0:01:08.8]} 18. Rcf1 {[%clk
0:02:41.1]} 18... Qg3 {[%clk 0:00:58.3]} 19. Ne4 {[%clk 0:02:33.9]} 19... Qc7
{[%clk 0:00:52.2]} 20. Bh5 {[%clk 0:01:55.7]} 20... Re7 {[%clk 0:00:33]} 21. Qe2
{[%clk 0:01:37.6]} 21... Qa5+ {[%clk 0:00:22.7]} 22. Kc2 {[%clk 0:01:37.5]}
22... g6 {[%clk 0:00:16.9]} 23. Qh2 {[%clk 0:01:30.8]} 23... Qxa2 {[%clk
0:00:12.7]} 24. Nf6+ {[%clk 0:01:23.8]} 24... Kg7 {[%clk 0:00:12]} 25. Bxg6
{[%clk 0:01:22]} 25... Qc4+ {[%clk 0:00:10.7]} 26. Kb1 {[%clk 0:01:21.6]} 26...
fxg6 {[%clk 0:00:06.9]} 27. Qh8+ {[%clk 0:01:17.8]} 27... Kf7 {[%clk 0:00:07.1]}
28. Qg8# {[%clk 0:01:18.7]} 1-0

[Event "*** SCC Grand Prix: Titled Tuesday Blitz"]
[Site "Chess.com"]
[Date "2020.07.07"]
[Round "10"]
[White "elohunter1999"]
[Black "BocharovD"]
[Result "0-1"]
[WhiteElo "2491"]
[BlackElo "2763"]
[TimeControl "180+1"]
[EndTime "11:56:48 PDT"]
[Termination "BocharovD won by resignation"]

1. e4 {[%clk 0:03:00.9]} 1... c5 {[%clk 0:02:58.3]} 2. Nf3 {[%clk 0:03:00.6]}
2... d6 {[%clk 0:02:58.1]} 3. d4 {[%clk 0:03:00]} 3... cxd4 {[%clk 0:02:59]} 4.
Nxd4 {[%clk 0:03:00.6]} 4... Nf6 {[%clk 0:02:59.4]} 5. Nc3 {[%clk 0:03:01.1]}
5... a6 {[%clk 0:02:59.9]} 6. h3 {[%clk 0:03:01.1]} 6... e5 {[%clk 0:02:58.2]}
7. Nb3 {[%clk 0:02:59.6]} 7... Be6 {[%clk 0:02:45.8]} 8. f4 {[%clk 0:02:59.6]}
8... b5 {[%clk 0:02:44.5]} 9. Qf3 {[%clk 0:02:31.5]} 9... Nbd7 {[%clk
0:02:28.6]} 10. f5 {[%clk 0:02:11.1]} 10... Bc4 {[%clk 0:02:27.9]} 11. Be3
{[%clk 0:02:06]} 11... Rc8 {[%clk 0:02:22.8]} 12. a3 {[%clk 0:01:57]} 12... Be7
{[%clk 0:02:15.5]} 13. g4 {[%clk 0:01:54.3]} 13... h6 {[%clk 0:02:13.7]} 14. Bd3
{[%clk 0:01:47.4]} 14... d5 {[%clk 0:01:59.5]} 15. Nxd5 {[%clk 0:01:32.5]} 15...
Nxd5 {[%clk 0:01:46.7]} 16. exd5 {[%clk 0:01:31.4]} 16... Bh4+ {[%clk 0:01:44]}
17. Kf1 {[%clk 0:01:11.5]} 17... Nf6 {[%clk 0:01:38.1]} 18. Nd2 {[%clk
0:01:00.1]} 18... Bxd5 {[%clk 0:01:35.1]} 19. Ne4 {[%clk 0:00:58.6]} 19... Rc4
{[%clk 0:01:14.5]} 20. Nxf6+ {[%clk 0:00:17.3]} 20... Bxf6 {[%clk 0:01:08.4]}
21. Qe2 {[%clk 0:00:17.7]} 21... Bxh1 {[%clk 0:01:06.7]} 22. Bxc4 {[%clk
0:00:17.3]} 22... bxc4 {[%clk 0:01:06.1]} 23. Qxc4 {[%clk 0:00:16.1]} 23... O-O
{[%clk 0:01:04.2]} 24. Kg1 {[%clk 0:00:14.7]} 24... Ba8 {[%clk 0:01:02.8]} 25.
Kh2 {[%clk 0:00:13.9]} 25... Bg5 {[%clk 0:01:02.1]} 0-1

[Event "*** SCC Grand Prix: Titled Tuesday Blitz"]
[Site "Chess.com"]
[Date "2020.07.07"]
[Round "10"]
[White "GameOverBro"]
[Black "Korchmar_Vasiliy"]
[Result "0-1"]
[WhiteElo "2506"]
[BlackElo "2638"]
[TimeControl "180+1"]
[EndTime "11:56:53 PDT"]
[Termination "Korchmar_Vasiliy won by resignation"]

1. e4 {[%clk 0:03:00.9]} 1... c5 {[%clk 0:03:00.2]} 2. Ne2 {[%clk 0:02:59.1]}
2... d6 {[%clk 0:03:00.1]} 3. g3 {[%clk 0:02:56]} 3... Nc6 {[%clk 0:02:59.1]} 4.
Bg2 {[%clk 0:02:54.9]} 4... Nf6 {[%clk 0:02:56.7]} 5. c3 {[%clk 0:02:55]} 5...
e6 {[%clk 0:02:47.4]} 6. O-O {[%clk 0:02:53.7]} 6... Be7 {[%clk 0:02:47.3]} 7.
d4 {[%clk 0:02:52.7]} 7... O-O {[%clk 0:02:47.1]} 8. h3 {[%clk 0:02:48]} 8...
Qc7 {[%clk 0:02:25.7]} 9. Be3 {[%clk 0:02:44.9]} 9... b5 {[%clk 0:02:22.4]} 10.
Nd2 {[%clk 0:02:36.1]} 10... Bb7 {[%clk 0:02:22]} 11. Rc1 {[%clk 0:02:34.8]}
11... Rad8 {[%clk 0:02:13]} 12. f4 {[%clk 0:02:34.3]} 12... d5 {[%clk 0:01:55]}
13. e5 {[%clk 0:02:33.3]} 13... Ne4 {[%clk 0:01:55.1]} 14. Nxe4 {[%clk
0:02:29.2]} 14... dxe4 {[%clk 0:01:55.2]} 15. Bxe4 {[%clk 0:02:29.8]} 15... Nxd4
{[%clk 0:01:48.1]} 16. Bxb7 {[%clk 0:02:29.5]} 16... Nxe2+ {[%clk 0:01:47.4]}
17. Qxe2 {[%clk 0:02:30.4]} 17... Qxb7 {[%clk 0:01:48]} 18. Qg2 {[%clk
0:02:14.4]} 18... Qa6 {[%clk 0:01:42.2]} 19. a3 {[%clk 0:02:06.1]} 19... Qa4
{[%clk 0:01:42]} 20. f5 {[%clk 0:02:01.8]} 20... exf5 {[%clk 0:01:35.1]} 21.
Rxf5 {[%clk 0:02:02.7]} 21... Rd3 {[%clk 0:01:26.8]} 22. Qf3 {[%clk 0:01:31.8]}
22... g6 {[%clk 0:01:14.5]} 23. Rf4 {[%clk 0:01:27.6]} 23... Qb3 {[%clk
0:01:15]} 24. Rf1 {[%clk 0:01:19.8]} 24... Bg5 {[%clk 0:01:12.2]} 25. Re4 {[%clk
0:00:52.9]} 25... Qxb2 {[%clk 0:01:04.2]} 26. e6 {[%clk 0:00:51.8]} 26... Qxc3
{[%clk 0:00:52.8]} 27. exf7+ {[%clk 0:00:48.1]} 27... Kg7 {[%clk 0:00:52.4]} 28.
Re1 {[%clk 0:00:20.3]} 28... Qxe1+ {[%clk 0:00:50.9]} 0-1

[Event "*** SCC Grand Prix: Titled Tuesday Blitz"]
[Site "Chess.com"]
[Date "2020.07.07"]
[Round "10"]
[White "mirochka"]
[Black "ArnieChipmunk"]
[Result "0-1"]
[WhiteElo "2146"]
[BlackElo "2313"]
[TimeControl "180+1"]
[EndTime "11:56:54 PDT"]
[Termination "ArnieChipmunk won by resignation"]

1. e4 {[%clk 0:03:00.9]} 1... e5 {[%clk 0:02:59.2]} 2. Nf3 {[%clk 0:02:59.5]}
2... d6 {[%clk 0:02:59.4]} 3. d4 {[%clk 0:02:59.7]} 3... f5 {[%clk 0:02:59.3]}
4. dxe5 {[%clk 0:02:51.1]} 4... fxe4 {[%clk 0:02:58.8]} 5. Ng5 {[%clk
0:02:48.8]} 5... d5 {[%clk 0:02:59]} 6. e6 {[%clk 0:02:30.8]} 6... Nc6 {[%clk
0:02:58.8]} 7. Nf7 {[%clk 0:02:22.8]} 7... Qf6 {[%clk 0:02:58.7]} 8. Nxh8 {[%clk
0:01:51.4]} 8... Bc5 {[%clk 0:02:57.4]} 9. Qh5+ {[%clk 0:01:39.8]} 9... g6
{[%clk 0:02:55]} 10. Qxh7 {[%clk 0:01:36.7]} 10... Qxf2+ {[%clk 0:02:51.5]} 11.
Kd1 {[%clk 0:01:36.2]} 11... Bxe6 {[%clk 0:02:51.2]} 12. Qxg6+ {[%clk 0:01:27]}
12... Kd7 {[%clk 0:02:44.2]} 13. Bb5 {[%clk 0:01:20.5]} 13... Ne7 {[%clk
0:02:39.6]} 14. Qg3 {[%clk 0:01:10.1]} 14... Qd4+ {[%clk 0:02:24.6]} 15. Bd2
{[%clk 0:01:01.9]} 15... e3 {[%clk 0:02:08.9]} 16. c3 {[%clk 0:00:51.2]} 16...
Qxh8 {[%clk 0:02:00.3]} 17. Bxe3 {[%clk 0:00:48.3]} 17... Nf5 {[%clk 0:01:42.3]}
18. Bxc6+ {[%clk 0:00:46.6]} 18... bxc6 {[%clk 0:01:38.9]} 19. Qf3 {[%clk
0:00:35.4]} 19... Nxe3+ {[%clk 0:01:35.7]} 20. Kc1 {[%clk 0:00:35.6]} 20... Qh7
{[%clk 0:01:27.3]} 21. Qe2 {[%clk 0:00:29.1]} 21... Rf8 {[%clk 0:01:18.9]} 22.
b4 {[%clk 0:00:28.2]} 22... Bg4 {[%clk 0:01:16.4]} 23. Qd2 {[%clk 0:00:26]}
23... Nc4 {[%clk 0:01:00]} 24. Qc2 {[%clk 0:00:20.5]} 24... Be3+ {[%clk
0:00:56]} 25. Nd2 {[%clk 0:00:20.3]} 25... Bxd2+ {[%clk 0:00:51.1]} 0-1

[Event "*** SCC Grand Prix: Titled Tuesday Blitz"]
[Site "Chess.com"]
[Date "2020.07.07"]
[Round "10"]
[White "BlackBoarder"]
[Black "anesar92"]
[Result "1-0"]
[WhiteElo "2615"]
[BlackElo "2712"]
[TimeControl "180+1"]
[EndTime "11:57:03 PDT"]
[Termination "BlackBoarder won on time"]

1. e4 {[%clk 0:03:00.9]} 1... c5 {[%clk 0:02:59.5]} 2. Nf3 {[%clk 0:02:59.8]}
2... d6 {[%clk 0:02:58.8]} 3. c3 {[%clk 0:02:59.7]} 3... Nf6 {[%clk 0:02:57.3]}
4. h3 {[%clk 0:02:59.9]} 4... Nbd7 {[%clk 0:02:57.4]} 5. Bd3 {[%clk 0:02:59.5]}
5... b6 {[%clk 0:02:57.8]} 6. O-O {[%clk 0:02:59]} 6... Bb7 {[%clk 0:02:57.4]}
7. Re1 {[%clk 0:02:59.1]} 7... Rc8 {[%clk 0:02:57.9]} 8. Bc2 {[%clk 0:02:59]}
8... Qc7 {[%clk 0:02:58.3]} 9. Na3 {[%clk 0:02:52.6]} 9... e6 {[%clk 0:02:57.8]}
10. d4 {[%clk 0:02:51.7]} 10... cxd4 {[%clk 0:02:57.6]} 11. cxd4 {[%clk
0:02:51.5]} 11... d5 {[%clk 0:02:57.2]} 12. exd5 {[%clk 0:02:27.2]} 12... Bxa3
{[%clk 0:02:23.4]} 13. dxe6 {[%clk 0:02:26.4]} 13... fxe6 {[%clk 0:02:09.1]} 14.
Rxe6+ {[%clk 0:02:09.2]} 14... Kf8 {[%clk 0:02:07.9]} 15. Bb3 {[%clk 0:01:53.8]}
15... Bd6 {[%clk 0:01:44.4]} 16. Ng5 {[%clk 0:01:39.8]} 16... Qb8 {[%clk
0:00:23.8]} 17. Re1 {[%clk 0:00:40.3]} 1-0

[Event "*** SCC Grand Prix: Titled Tuesday Blitz"]
[Site "Chess.com"]
[Date "2020.07.07"]
[Round "10"]
[White "BeanScreen"]
[Black "Semen_Khanin"]
[Result "0-1"]
[WhiteElo "2576"]
[BlackElo "2718"]
[TimeControl "180+1"]
[EndTime "11:57:06 PDT"]
[Termination "Semen_Khanin won by resignation"]

1. e4 {[%clk 0:03:00.8]} 1... c6 {[%clk 0:02:57.2]} 2. d4 {[%clk 0:03:01.1]}
2... d5 {[%clk 0:02:57.7]} 3. exd5 {[%clk 0:03:02]} 3... cxd5 {[%clk 0:02:57.8]}
4. Bd3 {[%clk 0:03:02.6]} 4... Nc6 {[%clk 0:02:57.6]} 5. c3 {[%clk 0:03:03.3]}
5... Nf6 {[%clk 0:02:57.3]} 6. Bf4 {[%clk 0:03:03.8]} 6... Bg4 {[%clk
0:02:56.4]} 7. Qb3 {[%clk 0:03:04.1]} 7... Qd7 {[%clk 0:02:53.8]} 8. Nd2 {[%clk
0:03:04.6]} 8... e6 {[%clk 0:02:53.1]} 9. Ngf3 {[%clk 0:03:05.1]} 9... Bd6
{[%clk 0:02:48.1]} 10. Bxd6 {[%clk 0:03:05.8]} 10... Qxd6 {[%clk 0:02:48.3]} 11.
O-O {[%clk 0:03:06.3]} 11... O-O {[%clk 0:02:47.6]} 12. Rfe1 {[%clk 0:03:01.6]}
12... Bxf3 {[%clk 0:02:47.3]} 13. Nxf3 {[%clk 0:03:02]} 13... Nd7 {[%clk
0:02:47.4]} 14. Qc2 {[%clk 0:03:01.7]} 14... h6 {[%clk 0:02:47.5]} 15. Qd2
{[%clk 0:02:52.5]} 15... a6 {[%clk 0:02:47.1]} 16. a4 {[%clk 0:02:52.5]} 16...
Rac8 {[%clk 0:02:45.8]} 17. Re3 {[%clk 0:02:50.8]} 17... Na5 {[%clk 0:02:44.4]}
18. Ne5 {[%clk 0:02:50]} 18... Nb3 {[%clk 0:02:42.8]} 19. Qd1 {[%clk 0:02:15.4]}
19... Nxa1 {[%clk 0:02:42.7]} 20. Qxa1 {[%clk 0:02:13]} 20... Nxe5 {[%clk
0:02:42.9]} 21. dxe5 {[%clk 0:02:13.9]} 21... Qb6 {[%clk 0:02:39.4]} 22. Rg3
{[%clk 0:02:08.7]} 22... d4 {[%clk 0:02:37.2]} 23. Qc1 {[%clk 0:02:06.8]} 23...
Kh8 {[%clk 0:02:34.2]} 24. Qf4 {[%clk 0:02:04.4]} 24... Qxb2 {[%clk 0:02:20.5]}
25. h4 {[%clk 0:01:59]} 25... Rxc3 {[%clk 0:02:17.4]} 26. Qe4 {[%clk 0:01:55.1]}
26... g6 {[%clk 0:02:02.1]} 27. h5 {[%clk 0:01:50.2]} 27... Rc1+ {[%clk
0:01:57.2]} 28. Kh2 {[%clk 0:01:50.3]} 28... Qxf2 {[%clk 0:01:52.3]} 29. hxg6
{[%clk 0:01:04]} 29... Rh1+ {[%clk 0:01:51]} 30. Kxh1 {[%clk 0:01:04.4]} 30...
Qxg3 {[%clk 0:01:51.9]} 31. g7+ {[%clk 0:00:38.9]} 31... Qxg7 {[%clk 0:01:51.2]}
32. Qxd4 {[%clk 0:00:39.7]} 32... Rc8 {[%clk 0:01:43.2]} 33. Kh2 {[%clk
0:00:39.4]} 33... Qg5 {[%clk 0:01:31.9]} 34. Qe4 {[%clk 0:00:36.9]} 34... Qh5+
{[%clk 0:01:29.6]} 35. Kg3 {[%clk 0:00:30.7]} 35... Qg6+ {[%clk 0:01:27.4]} 36.
Qxg6 {[%clk 0:00:29.9]} 36... fxg6 {[%clk 0:01:27.8]} 37. Bxg6 {[%clk
0:00:30.2]} 37... Rg8 {[%clk 0:01:27.3]} 38. Kh4 {[%clk 0:00:29.2]} 38... Rxg6
{[%clk 0:01:28.2]} 39. g4 {[%clk 0:00:27.4]} 39... b5 {[%clk 0:01:27.1]} 40. a5
{[%clk 0:00:26.3]} 40... b4 {[%clk 0:01:27]} 41. Kh5 {[%clk 0:00:26.7]} 41...
Kh7 {[%clk 0:01:26.8]} 0-1

[Event "*** SCC Grand Prix: Titled Tuesday Blitz"]
[Site "Chess.com"]
[Date "2020.07.07"]
[Round "10"]
[White "jonaszmb"]
[Black "saraswathii"]
[Result "0-1"]
[WhiteElo "2450"]
[BlackElo "2361"]
[TimeControl "180+1"]
[EndTime "11:57:07 PDT"]
[Termination "saraswathii won on time"]

1. e4 {[%clk 0:03:00.9]} 1... c5 {[%clk 0:02:57]} 2. Nf3 {[%clk 0:03:01.2]} 2...
e6 {[%clk 0:02:57.1]} 3. c3 {[%clk 0:03:01.1]} 3... Nf6 {[%clk 0:02:55.2]} 4. e5
{[%clk 0:02:58.4]} 4... Nd5 {[%clk 0:02:54.6]} 5. d4 {[%clk 0:02:59]} 5... cxd4
{[%clk 0:02:54]} 6. cxd4 {[%clk 0:02:59.9]} 6... Nc6 {[%clk 0:02:54.3]} 7. Nc3
{[%clk 0:02:53.5]} 7... Bb4 {[%clk 0:02:52.9]} 8. Bd2 {[%clk 0:02:51.1]} 8...
Nb6 {[%clk 0:02:49.5]} 9. Bd3 {[%clk 0:02:48.8]} 9... d6 {[%clk 0:02:47]} 10.
Ne4 {[%clk 0:02:26]} 10... dxe5 {[%clk 0:02:41.1]} 11. Bxb4 {[%clk 0:02:12.8]}
11... Nxb4 {[%clk 0:02:39.5]} 12. Bb5+ {[%clk 0:02:12.1]} 12... Bd7 {[%clk
0:02:36.1]} 13. Bxd7+ {[%clk 0:02:11.6]} 13... Qxd7 {[%clk 0:02:37]} 14. Qb3
{[%clk 0:01:27.4]} 14... Qa4 {[%clk 0:02:22.9]} 15. Qxa4+ {[%clk 0:00:53.9]}
15... Nxa4 {[%clk 0:02:23.8]} 16. O-O {[%clk 0:00:52.9]} 16... exd4 {[%clk
0:02:19.4]} 17. Nxd4 {[%clk 0:00:48]} 17... Ke7 {[%clk 0:02:17.8]} 18. b3 {[%clk
0:00:44.9]} 18... Nb6 {[%clk 0:02:16.7]} 19. Nc5 {[%clk 0:00:43]} 19... Rhd8
{[%clk 0:02:12.1]} 20. Rad1 {[%clk 0:00:27.6]} 20... Rd5 {[%clk 0:02:03.2]} 21.
Nxb7 {[%clk 0:00:16.2]} 21... Rb8 {[%clk 0:02:02.3]} 22. a3 {[%clk 0:00:14]}
22... Rxb7 {[%clk 0:01:47.9]} 23. axb4 {[%clk 0:00:14.1]} 23... Kf6 {[%clk
0:01:31.8]} 24. Nc6 {[%clk 0:00:11.5]} 24... Rc7 {[%clk 0:01:30.7]} 25. Na5
{[%clk 0:00:05.3]} 25... Rxd1 {[%clk 0:01:26.4]} 26. Rxd1 {[%clk 0:00:05.1]}
26... Nd5 {[%clk 0:01:26.5]} 27. b5 {[%clk 0:00:03.8]} 27... Nc3 {[%clk
0:01:26.2]} 28. Re1 {[%clk 0:00:02.6]} 28... Nxb5 {[%clk 0:01:24.9]} 29. g3
{[%clk 0:00:02.9]} 29... Nd4 {[%clk 0:01:24.7]} 30. b4 {[%clk 0:00:01.9]} 30...
Nf3+ {[%clk 0:01:19.7]} 31. Kf1 {[%clk 0:00:02.1]} 31... Nxe1 {[%clk 0:01:19.8]}
32. Kxe1 {[%clk 0:00:03]} 32... Rc2 {[%clk 0:01:19.2]} 33. b5 {[%clk 0:00:02.2]}
33... Rc5 {[%clk 0:01:13.9]} 34. b6 {[%clk 0:00:01.6]} 34... Rxa5 {[%clk
0:01:12.3]} 0-1

[Event "*** SCC Grand Prix: Titled Tuesday Blitz"]
[Site "Chess.com"]
[Date "2020.07.07"]
[Round "10"]
[White "GMNickPert"]
[Black "Ave_Mariia"]
[Result "1-0"]
[WhiteElo "2658"]
[BlackElo "2384"]
[TimeControl "180+1"]
[EndTime "11:57:09 PDT"]
[Termination "GMNickPert won by resignation"]

1. d4 {[%clk 0:03:00.9]} 1... Nf6 {[%clk 0:03:00]} 2. Nf3 {[%clk 0:03:01]} 2...
e6 {[%clk 0:02:58.9]} 3. c4 {[%clk 0:03:00.9]} 3... d5 {[%clk 0:02:57.7]} 4. Nc3
{[%clk 0:03:00.6]} 4... Bb4 {[%clk 0:02:53]} 5. cxd5 {[%clk 0:02:58.9]} 5...
exd5 {[%clk 0:02:51.3]} 6. Bf4 {[%clk 0:02:58.8]} 6... O-O {[%clk 0:02:50.2]} 7.
Rc1 {[%clk 0:02:57.1]} 7... c6 {[%clk 0:02:48.2]} 8. e3 {[%clk 0:02:56.9]} 8...
Ne4 {[%clk 0:02:35.3]} 9. Bd3 {[%clk 0:02:55.5]} 9... Bg4 {[%clk 0:02:25.3]} 10.
Qc2 {[%clk 0:02:50.9]} 10... Bxf3 {[%clk 0:01:59.3]} 11. gxf3 {[%clk 0:02:51.8]}
11... Nf6 {[%clk 0:01:57.8]} 12. Rg1 {[%clk 0:02:45.6]} 12... g6 {[%clk
0:01:44.2]} 13. Kf1 {[%clk 0:02:19.9]} 13... Nbd7 {[%clk 0:01:38.6]} 14. Ne2
{[%clk 0:02:16.2]} 14... Re8 {[%clk 0:01:35.2]} 15. Ng3 {[%clk 0:02:15]} 15...
Bf8 {[%clk 0:01:21.1]} 16. h4 {[%clk 0:02:13.8]} 16... c5 {[%clk 0:01:05.7]} 17.
h5 {[%clk 0:01:53.4]} 17... cxd4 {[%clk 0:01:00.1]} 18. Bc7 {[%clk 0:01:53.1]}
18... Qe7 {[%clk 0:00:56.7]} 19. hxg6 {[%clk 0:01:50.5]} 19... fxg6 {[%clk
0:00:48.9]} 20. Bxg6 {[%clk 0:01:31.4]} 20... hxg6 {[%clk 0:00:33.2]} 21. Qxg6+
{[%clk 0:01:31.1]} 21... Kh8 {[%clk 0:00:28]} 22. Rh1+ {[%clk 0:01:21.3]} 22...
Nh7 {[%clk 0:00:27.8]} 23. Kg2 {[%clk 0:01:20]} 23... Nf6 {[%clk 0:00:20.4]} 24.
Nf5 {[%clk 0:00:53.4]} 24... Qd7 {[%clk 0:00:20.6]} 25. Bg3 {[%clk 0:00:52.9]}
25... Bb4 {[%clk 0:00:15.6]} 26. Rc7 {[%clk 0:00:47.8]} 1-0

[Event "*** SCC Grand Prix: Titled Tuesday Blitz"]
[Site "Chess.com"]
[Date "2020.07.07"]
[Round "10"]
[White "ammarzooqi"]
[Black "Vandros57"]
[Result "0-1"]
[WhiteElo "2163"]
[BlackElo "2118"]
[TimeControl "180+1"]
[EndTime "11:57:13 PDT"]
[Termination "Vandros57 won by resignation"]

1. e4 {[%clk 0:03:00]} 1... c5 {[%clk 0:02:58.7]} 2. Nc3 {[%clk 0:02:59.2]} 2...
e6 {[%clk 0:02:57.6]} 3. f4 {[%clk 0:02:59.3]} 3... d5 {[%clk 0:02:53.5]} 4. d3
{[%clk 0:02:57.3]} 4... dxe4 {[%clk 0:02:50.4]} 5. Nxe4 {[%clk 0:02:57.4]} 5...
Nd7 {[%clk 0:02:47.3]} 6. Nf3 {[%clk 0:02:57.2]} 6... Ngf6 {[%clk 0:02:45.8]} 7.
Nxf6+ {[%clk 0:02:57.1]} 7... Nxf6 {[%clk 0:02:44.6]} 8. g3 {[%clk 0:02:58]}
8... Bd7 {[%clk 0:02:41.2]} 9. Bg2 {[%clk 0:02:58.5]} 9... Bc6 {[%clk 0:02:40]}
10. O-O {[%clk 0:02:59]} 10... Be7 {[%clk 0:02:38.5]} 11. b3 {[%clk 0:02:56.7]}
11... Bxf3 {[%clk 0:02:28.3]} 12. Bxf3 {[%clk 0:02:26.5]} 12... Qd4+ {[%clk
0:02:23.3]} 13. Rf2 {[%clk 0:02:18.6]} 13... Qxa1 {[%clk 0:02:20.2]} 14. Bxb7
{[%clk 0:02:13.5]} 14... O-O {[%clk 0:02:07.9]} 15. Bxa8 {[%clk 0:02:12.4]}
15... Rxa8 {[%clk 0:02:06.5]} 16. c4 {[%clk 0:01:23.2]} 16... Rd8 {[%clk
0:01:54.2]} 17. Rb2 {[%clk 0:01:20.6]} 17... Rxd3 {[%clk 0:01:39.2]} 18. Qc2
{[%clk 0:01:14.3]} 18... h5 {[%clk 0:01:15.8]} 19. Kg2 {[%clk 0:01:06.2]} 19...
Rd7 {[%clk 0:01:10.5]} 20. Bd2 {[%clk 0:00:59.7]} 20... Ne4 {[%clk 0:00:58]} 21.
Bc1 {[%clk 0:00:52.9]} 21... Bf6 {[%clk 0:00:47.8]} 22. Rb1 {[%clk 0:00:43.4]}
22... Qd4 {[%clk 0:00:44.3]} 23. b4 {[%clk 0:00:39.5]} 23... Nd2 {[%clk
0:00:33.2]} 24. Rb2 {[%clk 0:00:32.4]} 24... Qe4+ {[%clk 0:00:31.5]} 25. Qxe4
{[%clk 0:00:28.7]} 25... Nxe4 {[%clk 0:00:31.2]} 26. bxc5 {[%clk 0:00:29.1]}
26... Bxb2 {[%clk 0:00:29.9]} 27. Bxb2 {[%clk 0:00:28.6]} 27... Rd2+ {[%clk
0:00:28.1]} 0-1